{"text_format":"3","workbook":"xlsx","n_sheets":4,"sheets":["Start","Udgifter","Indtægter","Sammendrag af indtægter og tab"],"not_rendered":{"charts":1},"read":"whole","date_system":"1900"}

{"sheet":"Start","index":0,"n_rows":8,"n_cols":2,"rows_kept":8}
[null,"OM DENNE SKABELON"]
[null,"Brug projektmappen Budget for begivenhed til at holde styr på udgifter og indtægter i forbindelse med en begivenhed."]
[null,"Udfyld med begivenhedens navn, og angiv oplysninger i tabellerne i regnearkene Udgifter og Indtægter."]
[null,"Udgifter i alt og Indtægter i alt beregnes automatisk."]
[null,"Oversigten og diagrammet over fortjeneste og tab opdateres automatisk i regnearket Oversigt over fortjeneste og tab."]
[null,"Bemærk! "]
[null,"Der er yderligere vejledning at finde i kolonne A i hvert regneark. Denne tekst er skjult med vilje. Du kan fjerne tekst ved at markere kolonne A og derefter vælge Slet. For ikke længere at skjule tekst skal du markere kolonne A og derefter ændre skriftfarven."]
[null,"Hvis du vil vide mere om tabeller, skal du trykke på Skift og derefter F10, mens du er i en tabel, vælge indstillingen Tabel og derefter vælge Alternativ tekst."]

{"sheet":"Udgifter","index":1,"n_rows":32,"n_cols":8,"rows_kept":32,"merged":[[0,1,0,4],[2,1,3,1]]}
["Angiv anslåede og faktiske omkostninger for hver kategori i de respektive tabeller i dette regneark og begivenhedens navn i celle D1 for at tilpasse titlen på dette og andre regneark. Undertitlen på dette regneark er i celle H1. I cellerne i denne kolonne vises en udførlig vejledning i, hvordan man bruger dette regneark. Den næste vejledning er i celle A3.","Budget for begivenheden Navn på begivenhed",{"$nulls":5},"UDGIFTER"]
[]
["\"Udgifter Total\" står i cellen til højre, \"Anslåede\" i celle G3 og \"Faktiske\" i H3.","UDGIFTER Total",{"$nulls":4},"Anslået","Faktisk"]
["Anslåede udgifter Total i G4 og Faktiske udgifter Total i H4 beregnes automatisk. Den næste vejledning er i celle A6.",{"$nulls":5},{"$f":"SUM(C11,C19,C25,C32,G11,G19,G24)","v":{"v":882,"d":"kr. 882.00"}},{"$f":"SUM(D11,D19,D25,D32,H11,H19,H24)","v":{"v":333,"d":"kr. 333.00"}}]
[]
["Angiv udgifter til lokalitet i tabellen, der begynder i cellen til højre, og forfriskninger i tabellen, der begynder i celle F6. Den næste vejledning er i celle A13.","Lokalitet","Anslået","Faktisk",null,"Forfriskninger","Anslået","Faktisk"]
[null,"Leje af lokaler",{"v":500,"d":"kr. 500.00"},null,null,"Mad"]
[null,"Personale på lokalitet",{"$nulls":3},"Drikkevarer",{"v":20,"d":"kr. 20.00"}]
[null,"Udstyr",{"$nulls":3},"Linned",null,{"v":20,"d":"kr. 20.00"}]
[null,"Borde og stole",{"$nulls":3},"Personale og drikkepenge"]
[null,"Total",{"$f":"SUBTOTAL(109,WebstedUdgifter[Anslået])","v":{"v":500,"d":"kr. 500.00"}},{"$f":"SUBTOTAL(109,WebstedUdgifter[Faktisk])","v":{"v":0,"d":"kr. 0.00"}},null,"Total",{"$f":"SUBTOTAL(109,ForfriskningerUdgifter[Anslået])","v":{"v":20,"d":"kr. 20.00"}},{"$f":"SUBTOTAL(109,ForfriskningerUdgifter[Faktisk])","v":{"v":20,"d":"kr. 20.00"}}]
[]
["Angiv udgifter til dekoration i tabellen, der begynder i cellen til højre, og programudgifter i tabellen, der begynder i celle F13. Den næste vejledning er i celle A21.","Dekorationer","Anslået","Faktisk",null,"Program","Anslået","Faktisk"]
[null,"Blomster",{"v":200,"d":"kr. 200.00"},{"v":300,"d":"kr. 300.00"},null,"Optrædende"]
[null,"Stearinlys",{"$nulls":3},"Talere",{"v":30,"d":"kr. 30.00"}]
[null,"Belysning",{"$nulls":3},"Rejse"]
[null,"Balloner",{"$nulls":3},"Hotel"]
[null,"Papirvarer",{"$nulls":3},"Andet"]
[null,"Total",{"$f":"SUBTOTAL(109,DekorationerUdgifter[Anslået])","v":{"v":200,"d":"kr. 200.00"}},{"$f":"SUBTOTAL(109,DekorationerUdgifter[Faktisk])","v":{"v":300,"d":"kr. 300.00"}},null,"Total",{"$f":"SUBTOTAL(109,ProgramUdgifter[Anslået])","v":{"v":30,"d":"kr. 30.00"}},{"$f":"SUBTOTAL(109,ProgramUdgifter[Faktisk])","v":{"v":0,"d":"kr. 0.00"}}]
[]
["Angiv udgifter til reklame i tabellen, der begynder i cellen til højre, og præmieudgifter i tabellen, der begynder i celle F21. Den næste vejledning er i celle A27","Reklame","Anslået","Faktisk",null,"Præmier","Anslået","Faktisk"]
[null,"Grafikarbejder",{"$nulls":3},"Ordensbånd/mindeplader/trofæer"]
[null,"Fotokopiering/udskrivning",{"v":20,"d":"kr. 20.00"},null,null,"Gaver",{"v":100,"d":"kr. 100.00"}]
[null,"Porto",{"$nulls":3},"Total",{"$f":"SUBTOTAL(109,PræmierUdgifter[Anslået])","v":{"v":100,"d":"kr. 100.00"}},{"$f":"SUBTOTAL(109,PræmierUdgifter[Faktisk])","v":{"v":0,"d":"kr. 0.00"}}]
[null,"Total",{"$f":"SUBTOTAL(109,ReklameUdgifter[Anslået])","v":{"v":20,"d":"kr. 20.00"}},{"$f":"SUBTOTAL(109,ReklameUdgifter[Faktisk])","v":{"v":0,"d":"kr. 0.00"}}]
[]
["Angiv diverse udgifter i tabellen, der begynder i cellen til højre.","Diverse","Anslået","Faktisk"]
[null,"Telefon",null,{"v":13,"d":"kr. 13.00"}]
[null,"Transport",{"v":12,"d":"kr. 12.00"}]
[null,"Kontorartikler"]
[null,"Faxtjenester"]
[null,"Total",{"$f":"SUBTOTAL(109,DiverseUdgifter[Anslået])","v":{"v":12,"d":"kr. 12.00"}},{"$f":"SUBTOTAL(109,DiverseUdgifter[Faktisk])","v":{"v":13,"d":"kr. 13.00"}}]

{"sheet":"Indtægter","index":2,"n_rows":29,"n_cols":7,"rows_kept":29,"merged":[[0,1,0,3],[2,1,3,1]]}
["Angiv de anslåede og faktiske indtægter for hver kategori i de respektive tabeller i dette regneark. Titlen på dette regneark opdateres automatisk i cellerne til højre. Undertitlen vises i celle G1. I cellerne i denne kolonne vises en udførlig vejledning i, hvordan man bruger dette regneark. Den næste vejledning er i celle A3.",{"$f":"Udgifter!B1","v":"Budget for begivenheden Navn på begivenhed"},{"$nulls":4},"INDTÆGTER"]
[]
["\"Indtægter Total\" står i cellen til højre, \"Anslåede\" i celle F3 og \"Faktiske\" i G3.","INDTÆGTER Total",{"$nulls":3},"Anslået","Faktisk"]
["Anslåede indtægter Total beregnes automatisk i celle F4 og Faktiske indtægter Total i G4.",{"$nulls":4},{"$f":"SUM(Entreindtægter[[#Totals],[Anslåede indtægter]],ReklamerIProgram[[#Totals],[Anslåede indtægter]],UdstillereOgLeverandører[[#Totals],[Anslåede indtægter]],SalgAfElementer[[#Totals],[Anslåede indtægter]])","v":{"v":1936,"d":"kr. 1,936.00"}},{"$f":"SUM(Entreindtægter[[#Totals],[Faktiske indtægter]],ReklamerIProgram[[#Totals],[Faktiske indtægter]],UdstillereOgLeverandører[[#Totals],[Faktiske indtægter]],SalgAfElementer[[#Totals],[Faktiske indtægter]])","v":{"v":1831,"d":"kr. 1,831.00"}}]
["\"Entreindtægter\" findes i cellen til højre.","ENTREINDTÆGTER"]
["Angiv det anslåede og faktiske antal deltagere med billetpriser i tabellen, der begynder i cellen til højre. Anslåede og faktiske entreindtægter beregnes automatisk. Den næste vejledning er i celle A11.","Anslået antal","Faktisk antal","Type","Pris","Anslåede indtægter","Faktiske indtægter"]
[null,300,278,"Voksne @",{"v":5,"d":"kr. 5.00"},{"$f":"B7*E7","v":{"v":1500,"d":"kr. 1,500.00"}},{"$f":"C7*E7","v":{"v":1390,"d":"kr. 1,390.00"}}]
[null,197,195,"Børn @",{"v":2,"d":"kr. 2.00"},{"$f":"B8*E8","v":{"v":394,"d":"kr. 394.00"}},{"$f":"C8*E8","v":{"v":390,"d":"kr. 390.00"}}]
[null,42,51,"Andre @",{"v":1,"d":"kr. 1.00"},{"$f":"B9*E9","v":{"v":42,"d":"kr. 42.00"}},{"$f":"C9*E9","v":{"v":51,"d":"kr. 51.00"}}]
[null,"Total",{"$nulls":3},{"$f":"SUBTOTAL(109,Entreindtægter[Anslåede indtægter])","v":{"v":1936,"d":"kr. 1,936.00"}},{"$f":"SUBTOTAL(109,Entreindtægter[Faktiske indtægter])","v":{"v":1831,"d":"kr. 1,831.00"}}]
["\"Annoncer i program\" er i cellen til højre.","ANNONCER I PROGRAMMET"]
["Angiv anslåede og faktiske antal annoncer i programmet og annoncepriser i tabellen, der begynder i cellen til højre. Anslåede og faktiske indtægter fra annoncer beregnes automatisk. Den næste vejledning er i celle A17.","Anslået antal","Faktisk antal","Type","Pris","Anslåede indtægter","Faktiske indtægter"]
[null,12,null,"Omslag @",null,{"$f":"B13*E13","v":{"v":0,"d":"kr. 0.00"}},{"$f":"C13*E13","v":{"v":0,"d":"kr. 0.00"}}]
[null,null,158,"Halve sider @",null,{"$f":"B14*E14","v":{"v":0,"d":"kr. 0.00"}},{"$f":"C14*E14","v":{"v":0,"d":"kr. 0.00"}}]
[null,4,null,"Kvarte sider @",null,{"$f":"B15*E15","v":{"v":0,"d":"kr. 0.00"}},{"$f":"C15*E15","v":{"v":0,"d":"kr. 0.00"}}]
[null,"Total",{"$nulls":3},{"$f":"SUBTOTAL(109,ReklamerIProgram[Anslåede indtægter])","v":{"v":0,"d":"kr. 0.00"}},{"$f":"SUBTOTAL(109,ReklamerIProgram[Faktiske indtægter])","v":{"v":0,"d":"kr. 0.00"}}]
["Udstillere eller leverandører er i cellen til højre.","UDSTILLERE/LEVERANDØRER"]
["Angiv det anslåede og faktiske antal udstillere og leverandører samt priser for standpladser i tabellen, der begynder i cellen til højre. Anslåede og faktiske indtægter beregnes automatisk. Den næste vejledning er i celle A23.","Anslået antal","Faktisk antal","Type","Pris","Anslåede indtægter","Faktiske indtægter"]
[null,23,null,"Store standpladser @",null,{"$f":"B19*E19","v":{"v":0,"d":"kr. 0.00"}},{"$f":"C19*E19","v":{"v":0,"d":"kr. 0.00"}}]
[null,354,null,"Mellem standpladser @",null,{"$f":"B20*E20","v":{"v":0,"d":"kr. 0.00"}},{"$f":"C20*E20","v":{"v":0,"d":"kr. 0.00"}}]
[null,56,null,"Små standpladser @",null,{"$f":"B21*E21","v":{"v":0,"d":"kr. 0.00"}},{"$f":"C21*E21","v":{"v":0,"d":"kr. 0.00"}}]
[null,"Total",{"$nulls":3},{"$f":"SUBTOTAL(109,UdstillereOgLeverandører[Anslåede indtægter])","v":{"v":0,"d":"kr. 0.00"}},{"$f":"SUBTOTAL(109,UdstillereOgLeverandører[Faktiske indtægter])","v":{"v":0,"d":"kr. 0.00"}}]
["\"Salg af varer\" er i cellen til højre.","SALG AF VARER"]
["Angiv anslåede og faktiske antal solgte varer samt varepriser i tabellen, der begynder i cellen til højre. Anslåede og faktiske indtægter beregnes automatisk.","Anslået antal","Faktisk antal","Type","Pris","Anslåede indtægter","Faktiske indtægter"]
[{"$nulls":3},"Varer @",null,{"$f":"B25*E25","v":{"v":0,"d":"kr. 0.00"}},{"$f":"C25*E25","v":{"v":0,"d":"kr. 0.00"}}]
[null,123,null,"Varer @",null,{"$f":"B26*E26","v":{"v":0,"d":"kr. 0.00"}},{"$f":"C26*E26","v":{"v":0,"d":"kr. 0.00"}}]
[{"$nulls":3},"Varer @",null,{"$f":"B27*E27","v":{"v":0,"d":"kr. 0.00"}},{"$f":"C27*E27","v":{"v":0,"d":"kr. 0.00"}}]
[null,13,null,"Varer @",null,{"$f":"B28*E28","v":{"v":0,"d":"kr. 0.00"}},{"$f":"C28*E28","v":{"v":0,"d":"kr. 0.00"}}]
[null,"Total",{"$nulls":3},{"$f":"SUBTOTAL(109,SalgAfElementer[Anslåede indtægter])","v":{"v":0,"d":"kr. 0.00"}},{"$f":"SUBTOTAL(109,SalgAfElementer[Faktiske indtægter])","v":{"v":0,"d":"kr. 0.00"}}]

{"sheet":"Sammendrag af indtægter og tab","index":3,"n_rows":8,"n_cols":7,"rows_kept":8,"merged":[[0,1,0,3],[2,4,11,6]]}
["Oversigten og diagrammet med fortjeneste og tab, der viser indtægter og udgifter Total, opdateres automatisk i dette regneark. Titlen på dette regneark opdateres automatisk i cellerne til højre. Undertitlen vises i celle G1 og G2. I cellerne i denne kolonne vises en udførlig vejledning i, hvordan man bruger dette regneark. Den næste vejledning er i celle A3.",{"$f":"Udgifter!B1","v":"Budget for begivenheden Navn på begivenhed"},{"$nulls":4},"FORTJENESTE "]
[{"$nulls":6},"Oversigt over tab"]
["Søjlediagram, der sammenligner anslåede indtægter og udgifter med faktiske indtægter og udgifter, er i celle E3.",{"$nulls":3},"Liggende søjlediagram, der viser en sammenligning af anslåede indtægter og udgifter samt faktiske indtægter og udgifter, er i denne celle."]
["Oversigtstabellen, der begynder i cellen til højre, opdateres automatisk. Den næste vejledning er i celle A8."," Total","Anslået","Faktisk"]
[null,"Indtægt Total",{"$f":"Indtægter!F4","v":{"v":1936,"d":"kr. 1,936.00"}},{"$f":"Indtægter!G4","v":{"v":1831,"d":"kr. 1,831.00"}}]
[null,"Udgifter Total",{"$f":"Udgifter!G4","v":{"v":882,"d":"kr. 882.00"}},{"$f":"Udgifter!H4","v":{"v":333,"d":"kr. 333.00"}}]
[]
["Anslået fortjeneste eller tab Total beregnes automatisk i celle C8 og Faktisk fortjeneste eller tab Total i celle D8.","Fortjeneste (eller tab) Total              ",{"$f":"C5-C6","v":{"v":1054,"d":"kr. 1,054.00"}},{"$f":"D5-D6","v":{"v":1498,"d":"kr. 1,498.00"}}]